[Event "Turkish-ch Youth U18 Boys 2024"]
[Site "Belek Antalya"]
[Date "2024.01.21"]
[Round "1"]
[White "Engin, Onur Cinar"]
[Black "Kahya, Mehmet Yasar"]
[Result "1-0"]
[ECO "C50"]
[WhiteElo "2061"]
[BlackElo "1160"]
[Annotator "RC"]
[PlyCount "83"]
[EventDate "2024.01.21"]
[EventType "swiss"]
[EventCountry "TUR"]
[SourceTitle "playchess.com"]
[Source "ChessBase"]
[SourceQuality "1"]
[TimeControl "5400+30"]

1. e4 {[%emt 0:01:00]} d6 {[%emt 0:01:00]} 2. d4 {[%emt 0:00:30]} Nf6 {[%emt 0:00:30]} 3. Nc3 {[%emt 0:00:30]} e5 {[%emt 0:00:30]} 4. Nf3 {[%emt 0:00:30]} Nbd7 {[%emt 0:00:00]} 5. Bc4 {[%emt 0:00:00]} Be7 {[%emt 0:00:00]} 6. O-O {[%emt 0:00:00]} O-O {[%emt 0:00:00]} 7. Re1 {[%emt 0:01:30]} exd4 {[%emt 0:09:00]} 8. Nxd4 {[%emt 0:00:30]} Ne5 {[%emt 0:05:30]} 9. Bf1 {[%emt 0:19:30]} c5 {[%emt 0:16:30]} 10. Nde2 {[%emt 0:03:30]} b5 {[%emt 0:06:30]} 11. Bg5 {[%emt 0:08:30]} a6 {[%emt 0:06:30]} 12. Nf4 {[%emt 0:10:30]} Bb7 {[%emt 0:06:30]} 13. Bxf6 {[%emt 0:05:30]} Bxf6 {[%emt 0:00:30]} 14. Nfd5 {[%emt 0:01:30]} Re8 {[%emt 0:02:30]} 15. Qd2 {[%emt 0:11:30]} Be7 {[%emt 0:04:30]} 16. Rad1 {[%emt 0:03:30]} Bf8 {[%emt 0:02:30]} 17. Qf4 {[%emt 0:09:30]} b4 {[%emt 0:04:30]} 18. Ne2 {[%emt 0:03:10]} Qa5 {[%emt 0:01:30]} 19. Nc1 {[%emt 0:05:41]} Re6 {[%emt 0:01:30]} 20. Qd2 {[%emt 0:02:57]} Rg6 {[%emt 0:03:30]} 21. Be2 {[%emt 0:01:40]} Qd8 {[%emt 0:01:30]} 22. Nd3 {[%emt 0:01:17]} Nxd3 {[%emt 0:03:30]} 23. Bxd3 {[%emt 0:00:40]} Bxd5 {[%emt 0:01:30]} 24. exd5 {[%emt 0:00:32]} Rh6 {[%emt 0:00:30]} 25. Re4 {[%emt 0:04:43]} Qd7 {[%emt 0:08:06]} 26. Rde1 {[%emt 0:00:38]} a5 {[%emt 0:06:34]} 27. R1e3 {[%emt 0:02:04]} g6 {[%emt 0:01:45]} 28. Qe2 {[%emt 0:00:22]} Rb8 {[%emt 0:00:04]} 29. Re8 {[%emt 0:01:31]} Rxe8 {[%emt 0:06:40]} 30. Rxe8 {[%emt 0:00:02]} Kg7 {[%emt 0:00:49]} 31. Bb5 {[%emt 0:00:43]} Qc7 {[%emt 0:00:35]} 32. g4 {[%emt 0:00:12]} Rh4 {[%emt 0:00:51]} 33. Kg2 {[%emt 0:01:37]} h5 {[%emt 0:00:41]} 34. h3 {[%emt 0:00:30]} hxg4 {[%emt 0:00:30]} 35. hxg4 {[%emt 0:00:00]} Rh8 {[%emt 0:00:06]} 36. g5 {[%emt 0:00:26]} Rh4 {[%emt 0:00:44]} 37. Kg3 {[%emt 0:00:54]} Rh8 {[%emt 0:00:47]} 38. Qf3 {[%emt 0:00:30]} Kh7 {[%emt 0:00:30]} 39. Bd3 {[%emt 0:00:30]} Qd7 {[%emt 0:00:30]} 40. Bb5 {[%emt 0:01:04]} Qxb5 {[%emt 0:00:43]} 41. Qxf7+ {[%emt 0:00:30]} Bg7 {[%emt 0:00:30]} 42. Re1 {[%emt 0:00:05]} 1-0

[Event "Turkish-ch Youth U18 Boys 2024"]
[Site "Belek Antalya"]
[Date "2024.01.21"]
[Round "1"]
[White "Gunal, Yusuf Kursat"]
[Black "Kuru, Berkay Goktug"]
[Result "0-1"]
[ECO "D34"]
[WhiteElo "1801"]
[BlackElo "1280"]
[Annotator "NA RC COMBH"]
[PlyCount "73"]
[EventDate "2024.01.21"]
[EventType "swiss"]
[EventCountry "TUR"]
[SourceTitle "playchess.com"]
[Source "ChessBase"]
[SourceQuality "1"]
[TimeControl "5400+30"]

1. Nf3 {[%emt 0:01:00]} Nf6 {[%emt 0:01:00]} 2. d4 {[%emt 0:00:30]} d5 {[%emt 0:00:30]} 3. g3 {[%emt 0:00:30]} e6 {[%emt 0:00:30]} 4. Bg2 {[%emt 0:00:30]} c5 {[%emt 0:00:30]} 5. O-O {[%emt 0:00:30]} Nc6 {[%emt 0:00:00]} 6. c4 {[%emt 0:00:30]} Be7 {[%emt 0:00:00]} 7. cxd5 {[%emt 0:04:30]} exd5 {[%emt 0:00:00]} 8. Nc3 {[%emt 0:02:30]} O-O {[%emt 0:00:00]} 9. dxc5 {[%emt 0:04:30]} Bxc5 {[%emt 0:00:00]} 10. Bg5 {[%emt 0:01:30]} d4 {[%emt 0:00:00]} 11. Bxf6 {[%emt 0:03:30]} Qxf6 {[%emt 0:00:30]} 12. Ne4 {[%emt 0:00:30]} Qe7 {[%emt 0:00:30]} 13. Nxc5 {[%emt 0:00:30]} Qxc5 {[%emt 0:00:30]} 14. Rc1 {[%emt 0:00:30]} Qb6 {[%emt 0:00:00]} 15. b3 {[%emt 0:06:30]} Bg4 {[%emt 0:07:00]} 16. h3 {[%emt 0:00:30]} Bh5 {[%emt 0:01:30]} 17. Rc4 {[%emt 0:13:30]} Rad8 {[%emt 0:05:30]} 18. g4 {[%emt 0:02:30]} Bg6 {[%emt 0:01:30]} 19. Qd2 {[%emt 0:03:30]} Rfe8 {[%emt 0:16:30]} 20. Rd1 {[%emt 0:02:30]} d3 {[%emt 0:06:30]} 21. e3 {[%emt 0:13:30]} Be4 {[%emt 0:21:30]} 22. Rc3 {[%emt 0:07:30]} f5 {[%emt 0:11:30]} 23. g5 {[%emt 0:09:30]} Ne5 {[%emt 0:12:25]} 24. Nxe5 {[%emt 0:07:07]} Rxe5 {[%emt 0:00:11]} 25. f4 {[%emt 0:09:27]} Re7 {[%emt 0:01:57]} 26. Bf1 {[%emt 0:01:55]} Red7 {[%emt 0:02:20]} 27. Kf2 {[%emt 0:02:59]} Qg6 {[%emt 0:02:13]} 28. Bg2 {[%emt 0:00:18]} Qh5 {[%emt 0:01:47]} 29. Rc4 {[%emt 0:00:34]} Qh4+ {[%emt 0:01:47]} 30. Kf1 {[%emt 0:00:37]} Qg3 {[%emt 0:01:03]} 31. Bxe4 {[%emt 0:00:54]} fxe4 {[%emt 0:00:35]} 32. Qf2 {[%emt 0:00:30]} Qxh3+ {[%emt 0:00:26]} 33. Ke1 {[%emt 0:00:24]} d2+ {[%emt 0:00:50]} 34. Rxd2 {[%emt 0:00:09]} Qh1+ {[%emt 0:00:30]} 35. Qf1 {[%emt 0:00:00]} Qxf1+ {[%emt 0:00:42]} 36. Kxf1 {[%emt 0:00:05]} Rxd2 {[%emt 0:00:30]} 37. Rxe4 {[%emt 0:00:30]} 0-1

[Event "Turkish-ch Youth U18 Boys 2024"]
[Site "Belek Antalya"]
[Date "2024.01.21"]
[Round "1"]
[White "Akgun, Yusuf"]
[Black "Erdogan, Tekin Alp"]
[Result "0-1"]
[ECO "B22"]
[WhiteElo "1561"]
[BlackElo "1992"]
[Annotator "RC"]
[PlyCount "77"]
[EventDate "2024.01.21"]
[EventType "swiss"]
[EventCountry "TUR"]
[SourceTitle "playchess.com"]
[Source "ChessBase"]
[SourceQuality "1"]
[TimeControl "5400+30"]

1. e4 {[%emt 0:01:00]} c5 {[%emt 0:01:00]} 2. c3 {[%emt 0:00:30]} Nf6 {[%emt 0:00:30]} 3. e5 {[%emt 0:00:30]} Nd5 {[%emt 0:00:30]} 4. d4 {[%emt 0:00:30]} cxd4 {[%emt 0:00:30]} 5. Nf3 {[%emt 0:00:30]} Nc6 {[%emt 0:00:00]} 6. cxd4 {[%emt 0:00:00]} d6 {[%emt 0:00:00]} 7. Bc4 {[%emt 0:00:00]} Nb6 {[%emt 0:00:30]} 8. Bb5 {[%emt 0:00:30]} Bd7 {[%emt 0:00:00]} 9. O-O {[%emt 0:02:30]} Nxe5 {[%emt 0:05:00]} 10. Bxd7+ {[%emt 0:07:30]} Nexd7 {[%emt 0:00:30]} 11. Nc3 {[%emt 0:03:30]} e6 {[%emt 0:08:30]} 12. Bf4 {[%emt 0:05:30]} Be7 {[%emt 0:02:30]} 13. Nb5 {[%emt 0:05:30]} Nf6 {[%emt 0:00:30]} 14. Rc1 {[%emt 0:04:30]} O-O {[%emt 0:03:30]} 15. Qd3 {[%emt 0:04:30]} Nbd5 {[%emt 0:02:30]} 16. Bd2 {[%emt 0:06:30]} Qd7 {[%emt 0:02:30]} 17. Rfe1 {[%emt 0:16:30]} h6 {[%emt 0:00:30]} 18. a3 {[%emt 0:08:30]} a6 {[%emt 0:01:30]} 19. Nc3 {[%emt 0:01:30]} Rfc8 {[%emt 0:00:30]} 20. Be3 {[%emt 0:10:57]} b5 {[%emt 0:03:30]} 21. Nd2 {[%emt 0:06:11]} Nb6 {[%emt 0:01:30]} 22. Nce4 {[%emt 0:05:10]} Nfd5 {[%emt 0:01:30]} 23. b3 {[%emt 0:00:57]} f5 {[%emt 0:02:30]} 24. Nc5 {[%emt 0:07:03]} dxc5 {[%emt 0:00:30]} 25. dxc5 {[%emt 0:01:02]} Nxe3 {[%emt 0:00:00]} 26. Qxd7 {[%emt 0:01:25]} Nxd7 {[%emt 0:00:00]} 27. c6 {[%emt 0:00:30]} Ne5 {[%emt 0:00:30]} 28. Rxe3 {[%emt 0:00:30]} Rxc6 {[%emt 0:00:30]} 29. Rce1 {[%emt 0:00:30]} Ng4 {[%emt 0:00:30]} 30. Rxe6 {[%emt 0:00:30]} Rxe6 {[%emt 0:00:30]} 31. Rxe6 {[%emt 0:00:30]} Bxa3 {[%emt 0:00:30]} 32. h3 {[%emt 0:00:30]} Nf6 {[%emt 0:00:00]} 33. Nf3 {[%emt 0:00:00]} Bb2 {[%emt 0:01:00]} 34. Re7 {[%emt 0:00:28]} a5 {[%emt 0:00:30]} 35. Nh4 {[%emt 0:00:30]} a4 {[%emt 0:00:30]} 36. bxa4 {[%emt 0:00:21]} bxa4 {[%emt 0:00:30]} 37. Nxf5 {[%emt 0:00:30]} a3 {[%emt 0:00:30]} 38. Ne3 {[%emt 0:00:30]} a2 {[%emt 0:00:30]} 39. Nc2 {[%emt 0:00:30]} 0-1

[Event "Turkish-ch Youth U18 Boys 2024"]
[Site "Belek Antalya"]
[Date "2024.01.21"]
[Round "1"]
[White "Ozdemir, Burak Kaan"]
[Black "Temizer, Umut"]
[Result "1/2-1/2"]
[ECO "B22"]
[WhiteElo "1390"]
[BlackElo "2071"]
[Annotator "RC"]
[PlyCount "120"]
[EventDate "2024.01.21"]
[EventType "swiss"]
[EventCountry "TUR"]
[SourceTitle "playchess.com"]
[Source "ChessBase"]
[SourceQuality "1"]
[TimeControl "5400+30"]

1. e4 {[%emt 0:01:00]} c5 {[%emt 0:01:00]} 2. c3 {[%emt 0:00:30]} Nf6 {[%emt 0:00:30]} 3. e5 {[%emt 0:00:30]} Nd5 {[%emt 0:00:30]} 4. d4 {[%emt 0:00:00]} cxd4 {[%emt 0:02:30]} 5. Nf3 {[%emt 0:00:00]} Nc6 {[%emt 0:00:30]} 6. cxd4 {[%emt 0:00:00]} d6 {[%emt 0:01:30]} 7. Bc4 {[%emt 0:00:00]} e6 {[%emt 0:04:30]} 8. O-O {[%emt 0:00:00]} Be7 {[%emt 0:00:30]} 9. Re1 {[%emt 0:05:00]} O-O {[%emt 0:00:30]} 10. a3 {[%emt 0:03:30]} b6 {[%emt 0:08:30]} 11. Bxd5 {[%emt 0:02:30]} exd5 {[%emt 0:00:30]} 12. Nc3 {[%emt 0:00:30]} Be6 {[%emt 0:00:30]} 13. Bf4 {[%emt 0:06:30]} dxe5 {[%emt 0:02:30]} 14. Nxe5 {[%emt 0:01:30]} Nxe5 {[%emt 0:01:30]} 15. Bxe5 {[%emt 0:00:30]} Qd7 {[%emt 0:00:30]} 16. Qf3 {[%emt 0:02:30]} Rfe8 {[%emt 0:03:30]} 17. h3 {[%emt 0:02:30]} f6 {[%emt 0:00:30]} 18. Bg3 {[%emt 0:00:30]} Bf7 {[%emt 0:01:30]} 19. Re3 {[%emt 0:02:30]} Bf8 {[%emt 0:00:30]} 20. Rae1 {[%emt 0:00:00]} Rxe3 {[%emt 0:00:30]} 21. Rxe3 {[%emt 0:00:00]} Rc8 {[%emt 0:00:30]} 22. Qe2 {[%emt 0:07:30]} Rc4 {[%emt 0:01:30]} 23. Qd2 {[%emt 0:03:30]} Qf5 {[%emt 0:06:30]} 24. Rf3 {[%emt 0:02:30]} Qc8 {[%emt 0:00:30]} 25. Rf4 {[%emt 0:04:30]} Bxa3 {[%emt 0:02:30]} 26. Nxd5 {[%emt 0:07:30]} Bd6 {[%emt 0:01:30]} 27. Nxf6+ {[%emt 0:00:30]} Kh8 {[%emt 0:06:30]} 28. Rg4 {[%emt 0:07:30]} Bxg3 {[%emt 0:04:30]} 29. Rxg3 {[%emt 0:01:30]} Qd8 {[%emt 0:01:30]} 30. Ng4 {[%emt 0:06:30]} Rxd4 {[%emt 0:01:30]} 31. Qc3 {[%emt 0:00:30]} Rc4 {[%emt 0:01:30]} 32. Rd3 {[%emt 0:03:30]} Qc7 {[%emt 0:01:30]} 33. Qe1 {[%emt 0:03:30]} Rc1 {[%emt 0:01:30]} 34. Rd1 {[%emt 0:00:30]} Rxd1 {[%emt 0:00:30]} 35. Qxd1 {[%emt 0:00:00]} a5 {[%emt 0:00:00]} 36. Qd4 {[%emt 0:01:00]} Kg8 {[%emt 0:01:00]} 37. Ne5 {[%emt 0:00:30]} Be6 {[%emt 0:00:30]} 38. Kh2 {[%emt 0:01:30]} Kf8 {[%emt 0:01:30]} 39. g3 {[%emt 0:00:30]} Ke7 {[%emt 0:01:30]} 40. Nf3 {[%emt 0:01:30]} Kf8 {[%emt 0:03:30]} 41. Qe4 {[%emt 0:01:30]} Bg8 {[%emt 0:01:30]} 42. Ng5 {[%emt 0:03:30]} g6 {[%emt 0:01:30]} 43. Qd4 {[%emt 0:01:30]} Qc5 {[%emt 0:01:30]} 44. Qf6+ {[%emt 0:01:30]} Ke8 {[%emt 0:00:30]} 45. Ne4 {[%emt 0:00:30]} Qe7 {[%emt 0:01:30]} 46. Qc6+ {[%emt 0:01:37]} Kf8 {[%emt 0:01:30]} 47. Nd6 {[%emt 0:03:13]} Qd8 {[%emt 0:04:30]} 48. Nc8 {[%emt 0:03:30]} b5 {[%emt 0:02:30]} 49. Nd6 {[%emt 0:00:44]} b4 {[%emt 0:00:30]} 50. Qc5 {[%emt 0:01:01]} Qe7 {[%emt 0:01:30]} 51. Qd4 {[%emt 0:01:13]} b3 {[%emt 0:02:30]} 52. Kg1 {[%emt 0:01:46]} a4 {[%emt 0:00:30]} 53. Qf4+ {[%emt 0:00:27]} Kg7 {[%emt 0:00:30]} 54. Qd4+ {[%emt 0:01:05]} Kh6 {[%emt 0:00:30]} 55. h4 {[%emt 0:01:07]} a3 {[%emt 0:03:30]} 56. Qd2+ {[%emt 0:01:48]} Kg7 {[%emt 0:00:30]} 57. Qc3+ {[%emt 0:00:33]} Kf8 {[%emt 0:01:30]} 58. Qc8+ {[%emt 0:00:30]} Kg7 {[%emt 0:00:30]} 59. Qc3+ {[%emt 0:00:30]} Kf8 {[%emt 0:00:30]} 60. Qc8+ {[%emt 0:00:30]} Kg7 {[%emt 0:00:48]} 1/2-1/2

[Event "Turkish-ch Youth U18 Boys 2024"]
[Site "Belek Antalya"]
[Date "2024.01.21"]
[Round "1"]
[White "Kaderoglu, Ali Efe"]
[Black "Ozen, Metehan"]
[Result "0-1"]
[ECO "C45"]
[WhiteElo "1262"]
[BlackElo "2252"]
[Annotator "RC"]
[PlyCount "62"]
[EventDate "2024.01.21"]
[EventType "swiss"]
[EventCountry "TUR"]
[SourceTitle "playchess.com"]
[Source "ChessBase"]
[SourceQuality "1"]
[TimeControl "5400+30"]

1. e4 {[%emt 0:01:00]} e5 {[%emt 0:01:00]} 2. Nf3 {[%emt 0:00:30]} Nc6 {[%emt 0:00:30]} 3. d4 {[%emt 0:00:00]} exd4 {[%emt 0:01:30]} 4. Nxd4 {[%emt 0:00:00]} Nf6 {[%emt 0:01:30]} 5. Nxc6 {[%emt 0:00:30]} bxc6 {[%emt 0:00:30]} 6. e5 {[%emt 0:00:30]} Qe7 {[%emt 0:00:00]} 7. Qe2 {[%emt 0:00:00]} Nd5 {[%emt 0:00:00]} 8. c4 {[%emt 0:00:00]} Ba6 {[%emt 0:01:30]} 9. b3 {[%emt 0:00:00]} g6 {[%emt 0:00:30]} 10. g3 {[%emt 0:01:00]} Bg7 {[%emt 0:00:30]} 11. Bb2 {[%emt 0:00:30]} O-O {[%emt 0:00:30]} 12. Nd2 {[%emt 0:35:30]} Nb4 {[%emt 0:08:30]} 13. Nf3 {[%emt 0:00:30]} c5 {[%emt 0:05:30]} 14. Bg2 {[%emt 0:05:30]} d5 {[%emt 0:09:30]} 15. O-O {[%emt 0:04:30]} Rae8 {[%emt 0:02:30]} 16. Rfe1 {[%emt 0:11:30]} dxc4 {[%emt 0:04:30]} 17. bxc4 {[%emt 0:00:30]} Qe6 {[%emt 0:01:30]} 18. a3 {[%emt 0:13:30]} Bxc4 {[%emt 0:07:30]} 19. Qe4 {[%emt 0:02:30]} Nd3 {[%emt 0:03:30]} 20. Ng5 {[%emt 0:02:38]} Qa6 {[%emt 0:00:30]} 21. Bc3 {[%emt 0:06:33]} Nxe1 {[%emt 0:00:30]} 22. Rxe1 {[%emt 0:00:06]} h6 {[%emt 0:01:30]} 23. Nf3 {[%emt 0:00:54]} Be6 {[%emt 0:02:30]} 24. Bd2 {[%emt 0:03:20]} Qxa3 {[%emt 0:03:30]} 25. Qh4 {[%emt 0:02:17]} Bd5 {[%emt 0:02:30]} 26. Bxh6 {[%emt 0:00:30]} Bxh6 {[%emt 0:02:30]} 27. Qxh6 {[%emt 0:00:44]} Bxf3 {[%emt 0:00:30]} 28. Bxf3 {[%emt 0:02:48]} Qxf3 {[%emt 0:00:30]} 29. e6 {[%emt 0:00:02]} Rxe6 {[%emt 0:00:00]} 30. Rxe6 {[%emt 0:00:30]} Qd1+ {[%emt 0:00:00]} 31. Kg2 {[%emt 0:00:45]} Qd5+ {[%emt 0:00:00]} 0-1

[Event "Turkish-ch Youth U18 Boys 2024"]
[Site "Belek Antalya"]
[Date "2024.01.22"]
[Round "2"]
[White "Ozen, Metehan"]
[Black "Ersin, Deniz"]
[Result "1-0"]
[ECO "B07"]
[WhiteElo "2252"]
[BlackElo "1228"]
[Annotator "TA"]
[PlyCount "94"]
[EventDate "2024.01.21"]
[EventType "swiss"]
[EventCountry "TUR"]
[SourceTitle "playchess.com"]
[Source "ChessBase"]
[SourceQuality "1"]
[TimeControl "5400+30"]

{[%evp 12,94,39,6,24,0,0,-23,7,-2,12,8,42,48,59,43,85,81,187,0,0,0,0,0,62,62,70,30,50,53,246,199,176,13,42,0,159,179,116,70,274,0,650,630,819,804,1444,1431,1332,1308,1279,1243,1811,1769,5601,5601,5214,2160,29985,29986,29987,29974,29961,29947,29986,29987,29987,29988,29985,29977,29977,29978,29978,29979,29978,29979,29976,5922,29984,29985,29984,29985,29984,29962,4829]} 1. e4 {[%emt 0:01:00]} d6 {[%emt 0:01:00]} 2. d4 {[%emt 0:00:30]} Nf6 {[%emt 0:00:30]} 3. Nc3 {[%emt 0:00:30]} g6 {[%emt 0:00:00]} 4. Bg5 {[%emt 0:01:30]} Bg7 {[%emt 0:00:00]} 5. Qd2 {[%emt 0:00:30]} c6 {[%emt 0:01:30]} 6. O-O-O {[%emt 0:07:30]} b5 {[%emt 0:03:30]} 7. f3 {[%emt 0:00:30]} Qa5 {[%emt 0:09:30] B07: Pirc Defence: Miscellaneous Systems.} 8. a3 {[%emt 0:14:30]} (8. Kb1 $5 {[%cal Re4e5]}) 8... Nbd7 {[%emt 0:09:30]} 9. Kb1 {[%emt 0:17:30]} Rb8 {[%emt 0:07:30] [#] Black has an edge.} 10. h4 $146 {[%emt 0:12:30]} ({Predecessor:} 10. Na2 Qxd2 11. Bxd2 O-O 12. Bd3 c5 13. dxc5 Nxc5 14. Ne2 Bd7 15. Bc3 Ne8 16. Bxg7 Kxg7 {1-0 Kusa,J (2177)-Kushko,D (2283) UKR-CZE Online Battle rapid 2020}) 10... h6 {[%emt 0:09:30]} 11. Bf4 {[%emt 0:03:30]} e5 {[%emt 0:23:30]} 12. dxe5 {[%emt 0:06:30]} dxe5 {[%emt 0:01:30]} 13. Be3 {[%emt 0:00:30]} Bf8 {[%emt 0:01:30] Prevents Qd6} 14. g4 {[%emt 0:08:30] White is more active.} Ba6 {[%emt 0:09:44]} (14... Qc7 $16) 15. g5 $2 {[%emt 0:06:18]} (15. Bxa7 b4 16. Bxb8 bxc3 $14) (15. Bh3 $18 {g5 would be deadly.} Qc7 16. g5) 15... hxg5 $11 {[%emt 0:01:13]} 16. Bxg5 {[%emt 0:00:52]} (16. Bh3 $5 g4 $8 17. fxg4 (17. Bxg4 Rb7 $11) 17... Bxa3 18. g5 $15 (18. bxa3 $2 b4 $19)) 16... b4 {[%emt 0:02:27]} 17. Bh3 {[%emt 0:01:44][%cal Rd2d7] Intending Qxd7+ and mate.} Rd8 {[%emt 0:04:00]} (17... Qc7 $1 $11 18. axb4 Bxb4) 18. Na2 $1 $40 {[%emt 0:00:47][%cal Ra2b4][%mdl 128] White is up to no good.} c5 {[%emt 0:02:10]} 19. f4 {[%emt 0:03:33]} (19. Rh2 $5 {[%cal Rh3d7]} Be7 20. Qe1 $14) 19... Be7 {[%emt 0:01:15]} 20. Nf3 {[%emt 0:03:19]} Nb6 $2 {[%emt 0:03:04]} (20... Qb6 $1 $14) 21. axb4 {[%emt 0:04:54] Qxd8+ is the strong threat.} cxb4 {[%emt 0:03:47]} 22. Qg2 {[%emt 0:01:04]} (22. Qxd8+ $1 $18 Bxd8 23. Rxd8+ {[%mdl 64] Remove Defender} (23. fxe5 $2 Nfd7 $19) 23... Kxd8 24. Bxf6+ Ke8 25. Rd1 (25. Bxh8 exf4 26. h5 Be2 $16)) 22... b3 {[%emt 0:01:34][%mdl 64] Deflection} (22... Nxe4 23. Rxd8+ (23. Nxe5 Bb7 $17) 23... Bxd8 24. Bxd8 $16) (22... Bb7 $5 {[%cal Rb4b3]} 23. Rxd8+ (23. Nxe5 $2 Bxe4 24. Nc6 Rxd1+ 25. Rxd1 Bxg2 $19) 23... Bxd8 $11) 23. cxb3 {[%emt 0:02:14] Threatens to win with Rxd8+.} Bd3+ $2 {[%emt 0:01:04] [#]} (23... Nxe4 $2 24. Rxd8+ (24. fxe5 Bd3+ 25. Rxd3 Rxd3 $17) (24. Nxe5 Bb7 $11) 24... Bxd8 25. Bxd8 $18) (23... Rxd1+ $11 24. Rxd1 Bb7) 24. Rxd3 $1 $16 {[%emt 0:01:08][%mdl 512]} Rxd3 {[%emt 0:00:34]} 25. Nxe5 {[%emt 0:00:01]} (25. b4 $1 $16 {[%cal Rb4a5]} Qa6 26. Nxe5) 25... Rd6 $2 {[%emt 0:02:15] [#]} (25... Rxb3 $2 26. Be6 $18) (25... Rd2 $14 26. Qf3 (26. Nc6 Rxg2 27. Nxa5 Rg3 $11) 26... Qc5) 26. Nxg6 $2 {[%emt 0:01:17]} fxg6 $4 {[%emt 0:00:30][%mdl 8192]} (26... Rd2 $11 27. Qg1 (27. Nxh8 $2 {loses.} Rxg2 28. Bxg2 Qd2 $19) 27... Na4 28. bxa4 (28. Nxh8 Rxb2+ 29. Ka1 Rxa2+ 30. Kxa2 Qd2+ 31. Kb1 Qb2#) 28... Qxa4) 27. e5 $18 {[%emt 0:00:00]} Rd2 {[%emt 0:00:57]} 28. Qc6+ {[%emt 0:00:03]} Nfd7 {[%emt 0:00:23]} 29. Qxg6+ {[%emt 0:00:47]} Kd8 {[%emt 0:00:30]} 30. Bxe7+ {[%emt 0:00:00]} Kxe7 {[%emt 0:00:30]} 31. Qg7+ {[%emt 0:00:12]} Kd8 {[%emt 0:00:30]} 32. Qxh8+ {[%emt 0:00:00]} Kc7 {[%emt 0:00:00]} 33. Rc1+ {[%emt 0:00:04]} Kb7 {[%emt 0:00:26]} 34. e6 {[%emt 0:00:15]} Nc5 {[%emt 0:01:04]} 35. Qg7+ {[%emt 0:00:50]} Ka6 {[%emt 0:00:06]} 36. b4 {[%emt 0:01:09][%cal Bb3b4,Bb4b5][%mdl 32]} Qb5 {[%emt 0:00:40]} 37. Rxc5 {[%emt 0:02:12]} Qd3+ {[%emt 0:00:30]} 38. Ka1 {[%emt 0:00:30][%csl Gb4][%cal Rc5a5]} Rd1+ {[%emt 0:00:30]} 39. Nc1 {[%emt 0:00:00][%csl Gb4][%cal Rc5a5]} Nc4 {[%emt 0:00:42]} 40. b5+ {[%emt 0:00:20]} Ka5 {[%emt 0:00:30]} 41. Qc7+ {[%emt 0:00:29]} ({And not} 41. Qxa7+ Kb4 42. Rxc4+ Qxc4 43. Qa3+ (43. Qe7+ Ka5 $11) 43... Kxb5 $11) 41... Kb4 {[%emt 0:00:24] [#]} 42. Rxc4+ $1 {[%emt 0:00:01]} Qxc4 {[%emt 0:00:45]} 43. Qxc4+ {[%emt 0:00:30]} (43. Qxa7 $2 Rxc1#) 43... Kxc4 {[%emt 0:00:30]} 44. Kb1 {[%emt 0:00:00]} (44. f5 $142 Kc5 45. f6 Rxc1+ 46. Ka2 Kd6 47. e7 Re1 48. h5 Re5 49. h6) 44... Kxb5 {[%emt 0:00:02]} 45. f5 {[%emt 0:00:09][%cal Bf4f5,Bf5f6][%mdl 32] White mates.} Kc6 {[%emt 0:00:00]} 46. f6 {[%emt 0:00:21]} Kd6 {[%emt 0:00:21]} 47. e7 {[%emt 0:00:30]} Re1 {[%emt 0:00:00] An entertaining game by Ozen.   Weighted Error Value: White=0.49/Black=0.85} 1-0